bitfinex-derivatives/quotes_ETHF0:USTF0_20250704
["timestamp","ask_amount","ask_price","bid_price","bid_amount"]
[1751652973072,1.3845,2487.8,2486.9,2.00984]
[1751652973073,0.8037,2487.7,2487.5,0.80372]
[1751652973367,0.8037,2487.7,2487.1,2.00967]
[1751652973368,2.40134869,2488.6,2487.2,0.6539]
[1751652973564,1.10946938,2488.5,2487.3,1.423]
[1751652973764,1.10946938,2488.4,2487.5,2.00937]
[1751652973961,1.2996,2488.3,2488.1,0.80355]
[1751652974164,1.10946938,2488.2,2488.1,0.80356]
[1751652974570,1.2996,2488.6,2488.5,0.80343]
[1751652974766,2.40958417,2488.6,2488.5,0.80343]
[1751652975573,0.6561,2488.7,2488.1,2.00889]
[1751652975574,0.6561,2488.7,2488.6,0.8034]
[1751652975767,0.8034,2488.6,2488.5,0.80341]
[1751652975965,1.3854,2488.6,2488.5,0.80341]
[1751652976365,3.29933496,2488.6,2488.5,0.80341]
[1751652976574,0.80347,2488.4,2488.0,0.6553]
[1751652976772,0.80344,2488.5,2488.3,0.80347]
[1751652977074,2.18884,2488.5,2488.3,0.80347]
[1751652977668,0.80346,2488.4,2488.3,0.80347]
[1751652977870,0.8035,2488.3,2488.0,0.6553]
[1751652978172,2.18886,2488.4,2488.3,0.80349]
[1751652978379,1.3854,2488.4,2488.3,0.80349]
[1751652978975,2.18886,2488.4,2488.3,0.80349]
[1751652979474,2.18886,2488.4,2488.0,0.6553]
[1751652979475,1.3854,2488.4,2488.0,0.6553]
[1751652979770,0.8035,2488.3,2488.2,0.80352]
[1751652980973,0.80353,2488.3,2488.2,0.80351]
[1751652981476,0.80356,2488.1,2488.0,1.45888]
[1751652981869,2.00891,2488.1,2486.9,8.02879248]
[1751652982176,0.8037,2487.7,2487.6,0.80368]
[1751652983473,0.80377,2487.5,2487.4,0.80375]
[1751652983976,0.80371,2487.7,2487.6,0.80369]
[1751652984683,0.80367,2487.8,2487.7,0.80365]
[1751652984877,0.80364,2487.9,2487.8,0.80362]
[1751652987677,2.8132,2488.3,2487.6,2.67289]
[1751652987678,0.8036,2488.1,2488.0,0.80356]
[1751652987870,0.80349,2488.4,2488.3,0.80345]
[1751652988066,2.0468,2488.7,2487.7,1.3737]
[1751652988270,0.6993,2489.0,2487.7,1.3737]
[1751652988271,41.60335,2488.8,2488.7,0.80336]
[1751652988475,1.90889158,2488.8,2488.7,0.80336]
[1751652988674,0.80335,2488.8,2488.7,0.80336]
[1751652988873,0.8034,2488.7,2488.6,0.80337]
[1751652990074,40.8,2488.8,2488.5,0.6778]
[1751652990278,0.80339,2488.6,2488.5,1.48119]
[1751652990677,0.80339,2488.6,2488.5,0.6778]
[1751652990874,0.80352,2488.3,2488.1,0.6832]
[1751652991076,0.80352,2488.3,2488.2,0.80352]
[1751652991973,0.80348,2488.4,2488.3,0.80346]
[1751652992375,0.80342,2488.6,2488.5,0.80339]
[1751652993073,0.80337,2488.8,2488.7,0.80334]
[1751652993274,0.80341,2488.7,2488.6,0.80337]
[1751652993875,0.80337,2488.8,2488.7,0.80333]
[1751652995580,0.8034,2488.7,2488.6,0.80336]
[1751652997476,0.80335,2488.8,2488.7,0.80335]
[1751652997782,41.60332,2488.9,2488.8,0.80333]
[1751652997983,40.8,2488.9,2488.5,2.00856]
[1751652998280,0.80333,2488.8,2488.7,0.80334]
[1751653003082,1.93553521,2488.8,2488.7,0.80334]
[1751653006187,1.13220521,2488.8,2488.1,0.6832]
[1751653006486,0.80349,2488.3,2488.2,1.50122]
[1751653006688,0.80349,2488.3,2488.2,0.6977]
[1751653006887,0.80355,2488.1,2488.0,0.80357]
[1751653007478,3.44885,2488.2,2487.5,2.0093]
[1751653007681,0.80368,2487.8,2487.7,0.80365]
[1751653010295,0.80364,2487.9,2487.8,0.80364]
[1751653010491,0.80368,2487.8,2487.7,0.80367]
[1751653011194,0.80368,2487.7,2487.6,1.5014]
[1751653012091,0.80368,2487.7,2487.6,0.6977]
[1751653012294,0.80375,2487.5,2487.4,0.6978]
[1751653012496,0.80378,2487.4,2487.3,0.6959]
[1751653012690,0.80387,2487.2,2487.1,0.80386]
[1751653013393,1.3891,2487.3,2487.0,0.6959]
[1751653013394,0.80388,2487.1,2487.0,0.6959]
[1751653013596,0.80397,2486.9,2486.8,0.80395]
[1751653015498,0.80397,2486.8,2486.7,0.6959]
[1751653015697,0.80397,2486.8,2486.7,1.49991]
[1751653015993,0.80396,2486.9,2486.8,0.80394]
[1751653016392,0.80396,2486.9,2486.5,2.01016]
[1751653016393,0.804,2486.8,2486.7,0.804]
[1751653016698,2.14396,2486.9,2486.8,0.80397]
[1751653016895,1.34,2486.9,2486.8,0.80397]
[1751653017093,0.7011,2487.2,2486.8,0.80397]
[1751653017293,0.80394,2486.9,2486.8,0.80397]
[1751653018895,2.71921,2487.4,2487.0,0.80389]
[1751653019099,0.80389,2487.1,2487.0,0.80388]
[1751653019894,0.80387,2487.2,2487.1,0.80387]
[1751653020101,0.80379,2487.4,2486.9,2.00984]
[1751653020301,0.6958,2487.6,2486.8,1.3255]
[1751653020593,40.8,2487.7,2487.6,0.80372]
[1751653020797,0.80361,2488.0,2487.9,0.8036]
[1751653021198,0.80358,2488.1,2488.0,0.80359]
[1751653021502,2.20133,2488.2,2488.1,0.80355]
[1751653021697,2.20133,2488.2,2487.8,2.00912]
[1751653021698,0.8036,2488.0,2487.9,0.8036]
[1751653021992,0.80358,2488.1,2488.0,0.80357]
[1751653022199,0.8036,2488.0,2487.9,0.8036]
[1751653023496,0.80362,2487.9,2487.8,1.47603]
[1751653023696,0.80361,2488.0,2487.9,0.8036]
[1751653023897,1.3978,2488.2,2487.5,0.6608]
[1751653024198,0.80366,2487.8,2487.7,0.80365]
[1751653024802,0.80372,2487.6,2487.5,2.15024]
[1751653025002,0.80371,2487.7,2487.6,0.80372]
[1751653025398,2.00914,2487.8,2487.0,1.3794]
[1751653025597,3.3256,2487.6,2487.1,1.48956]
[1751653025902,0.80384,2487.2,2487.1,1.48958]
[1751653026701,0.80391,2487.0,2486.9,0.6592]
[1751653027002,0.80391,2487.0,2486.9,1.46314]
[1751653027203,0.80391,2487.0,2486.9,0.6592]
[1751653027402,0.80391,2487.0,2486.9,1.46314]
[1751653027997,0.8039,2487.1,2487.0,0.80389]
[1751653028602,0.80391,2487.0,2486.9,1.46312]
[1751653029698,0.80391,2487.0,2486.9,0.6592]
[1751653029902,0.80397,2486.8,2486.7,1.45358]
[1751653030597,0.80396,2486.9,2486.8,0.80395]
[1751653031598,0.80393,2487.0,2486.9,0.80393]
[1751653032606,0.80397,2486.9,2486.8,0.80395]
[1751653033208,0.80397,2486.8,2486.7,0.6496]
[1751653033406,0.80404,2486.7,2486.6,0.80401]
[1751653034503,0.80407,2486.6,2486.5,0.80404]
[1751653035706,0.80407,2486.5,2486.4,1.51749]
[1751653036098,0.80407,2486.6,2486.5,0.80403]
[1751653036304,0.80402,2486.8,2486.7,0.80399]
[1751653036706,0.80394,2487.0,2486.9,0.80392]
[1751653036906,0.80395,2486.9,2486.8,0.80395]
[1751653037103,1.3144,2487.1,2486.6,3.40389]
[1751653037307,2.72471,2487.3,2486.9,0.80394]
[1751653037308,40.8,2487.0,2486.9,0.80394]
[1751653037903,0.80386,2487.2,2487.1,0.80388]
[1751653038105,0.80386,2487.2,2486.8,0.6564]
[1751653038106,0.80391,2487.1,2487.0,0.80389]
[1751653041906,1.3144,2487.2,2486.8,0.6564]
[1751653042110,0.80386,2487.2,2487.1,0.80388]
[1751653042313,1.93340824,2487.2,2487.1,0.80388]
[1751653042714,40.8,2487.3,2487.2,0.80384]
[1751653042915,1.3547,2487.5,2487.3,0.80378]
[1751653043117,0.80381,2487.4,2487.3,0.80378]
[1751653043415,41.60381,2487.4,2487.3,0.80378]
[1751653046719,40.8,2487.4,2487.3,0.80378]
[1751653047118,41.60378,2487.4,2487.3,0.80378]
[1751653049420,2.15847,2487.5,2487.4,0.80378]
[1751653049619,3.28541799,2487.5,2487.4,0.80378]
[1751653050121,1.12694799,2487.5,2487.4,0.80378]
[1751653050821,40.8,2487.7,2487.6,0.80372]
[1751653051021,41.92705478,2487.7,2487.6,0.80372]
[1751653051216,42.73076478,2487.7,2487.6,0.80372]
[1751653051417,42.73076478,2487.7,2487.5,0.80373]
[1751653051418,0.80377,2487.6,2487.5,0.80373]
[1751653051616,3.32215306,2487.6,2487.5,0.80373]
[1751653052115,3.3221492,2487.6,2487.5,0.80373]
[1751653052622,0.80378,2487.4,2487.3,0.7129]
[1751653053316,0.80377,2487.5,2487.3,0.7129]
[1751653053519,0.80377,2487.5,2487.4,0.80375]
[1751653053820,1.9310763,2487.5,2487.4,0.80375]
[1751653054615,1.1273063,2487.5,2487.4,0.80375]
[1751653054821,0.8037,2487.7,2487.6,0.80372]
[1751653055223,42.72969265,2487.7,2487.6,0.80372]
[1751653056014,0.80375,2487.5,2487.4,0.80378]
[1751653059127,1.3315,2487.6,2487.5,0.80375]
[1751653059316,2.13522,2487.6,2487.5,0.80375]
[1751653064228,0.80378,2487.5,2487.4,0.80375]
[1751653066928,0.689,2487.9,2487.8,0.80365]
[1751653067530,42.60929784,2487.9,2487.8,0.80365]
[1751653067731,43.41291784,2487.9,2487.8,0.80365]
[1751653068534,1.12029784,2487.9,2487.8,0.80365]
[1751653069127,41.60359,2488.0,2487.9,0.80362]
[1751653069436,42.70813122,2488.0,2487.9,0.80362]
[1751653069629,1.90813122,2488.0,2487.9,0.80362]
[1751653070031,42.70813122,2488.0,2487.9,0.80362]
[1751653072134,1.10454122,2488.0,2487.9,0.80362]
[1751653072631,1.90813122,2488.0,2487.7,0.7139]
[1751653072843,0.80365,2487.8,2487.7,1.51756]
[1751653073526,2.17794,2487.9,2487.7,0.7139]
[1751653073730,2.17794,2487.9,2487.8,0.80365]
[1751653074236,0.80364,2487.9,2487.8,0.80365]
[1751653075435,0.80365,2487.8,2487.7,1.51756]
[1751653075636,2.00913,2487.8,2487.2,2.0096]
[1751653075933,0.80386,2487.3,2487.2,0.80382]
[1751653076735,2.78,2487.4,2486.9,0.6539]
[1751653076942,0.80386,2487.2,2487.1,0.80384]
[1751653078539,0.6542,2487.4,2487.3,0.80381]
[1751653078740,2.56137618,2487.4,2487.3,0.80381]
[1751653079542,0.80383,2487.3,2487.2,0.80382]
[1751653079840,1.458,2487.4,2487.3,0.80381]
[1751653080139,2.54833933,2487.4,2487.3,0.80381]
[1751653080739,1.74453933,2487.4,2487.3,0.80381]
[1751653081135,1.3775,2487.5,2487.4,0.80378]
[1751653081338,2.46787745,2487.5,2487.4,0.80378]
[1751653081643,3.27161745,2487.5,2487.4,0.80378]
[1751653082939,2.46787745,2487.5,2487.4,0.80378]
[1751653083237,0.80378,2487.4,2487.3,1.46869]
[1751653083444,0.80378,2487.4,2487.3,0.6649]
[1751653083741,2.21368,2487.4,2487.3,1.46871]
[1751653084742,2.21368,2487.4,2487.3,0.6649]
[1751653084944,3.30556591,2487.4,2487.3,0.6649]
[1751653085142,0.80381,2487.3,2487.2,0.80383]
[1751653086243,0.80384,2487.2,2487.1,1.52365]
[1751653086839,0.80384,2487.3,2487.2,0.80381]
[1751653087739,0.80384,2487.2,2487.1,1.52366]
[1751653089249,0.80384,2487.2,2487.1,0.7198]
[1751653089439,0.80388,2487.1,2487.0,0.80389]
[1751653089637,0.80391,2487.0,2486.9,1.47192]
[1751653089940,0.8039,2487.1,2487.0,0.80388]
[1751653090745,0.80391,2487.0,2486.9,0.668]
[1751653091845,0.80391,2487.0,2486.7,0.80398]
[1751653091846,0.80397,2486.8,2486.7,0.80398]
[1751653097251,0.80401,2486.7,2486.6,1.48041]
[1751653097752,0.80401,2486.7,2486.6,0.6764]
[1751653098749,0.80401,2486.7,2486.6,1.48044]
[1751653098950,0.80401,2486.7,2486.6,0.6764]
[1751653099255,0.80411,2486.5,2486.4,0.80408]
[1751653099756,0.80413,2486.4,2486.3,0.8041]
[1751653100152,36.758,2486.5,2485.5,4.00905248]
[1751653100351,36.758,2486.5,2485.0,4.02272]
[1751653100352,0.80426,2485.9,2485.8,1.50027]
[1751653100547,0.80426,2486.0,2485.9,0.80424]
[1751653100745,0.80426,2485.9,2485.8,1.50028]
[1751653100951,2.13576,2485.9,2485.8,0.696]
[1751653101249,51.52524,2485.9,2485.1,3.20802561]
[1751653101450,2.01078,2485.8,2485.3,0.80444]
[1751653101651,0.80438,2485.6,2485.0,1.4307]
[1751653101951,40.8,2485.6,2485.5,0.80439]
[1751653102157,0.80444,2485.4,2485.0,1.4307]
[1751653102350,0.80447,2485.3,2485.1,0.80449]
[1751653102557,0.80447,2485.3,2484.9,0.696]
[1751653102751,0.80447,2485.3,2485.1,0.80451]
[1751653103255,0.80447,2485.3,2485.2,0.80449]
[1751653103958,0.80451,2485.2,2485.0,0.80452]
[1751653104154,4.11872,2485.5,2484.9,0.696]
[1751653104356,4.11872,2485.5,2485.0,0.80453]
[1751653104657,2.1077,2485.5,2485.2,0.80448]
[1751653105059,0.80451,2485.2,2485.0,0.80454]
[1751653105351,0.80451,2485.2,2485.1,0.80452]
[1751653105553,0.80448,2485.3,2484.9,0.696]
[1751653105749,2.1077,2485.5,2484.9,0.696]
[1751653106059,41.60436,2485.6,2485.5,0.80439]
[1751653106854,0.80443,2485.4,2485.3,0.80443]
[1751653107162,2.01099,2485.5,2484.9,0.696]
[1751653107351,2.20838,2485.3,2485.2,0.80449]
[1751653107855,0.80452,2485.1,2485.0,0.80453]
[1751653108055,0.80451,2485.2,2485.1,0.80451]
[1751653108661,0.80453,2485.1,2485.0,0.80453]
[1751653108861,2.20837,2485.3,2485.2,0.80449]
[1751653109061,0.8045,2485.2,2485.1,0.8045]
[1751653109361,2.20838,2485.3,2485.2,0.80449]
[1751653109854,1.4039,2485.3,2485.2,0.80449]
[1751653110059,1.4039,2485.3,2485.0,2.01138]
[1751653110060,36.849,2485.4,2485.1,2.01127]
[1751653110262,12.2214,2485.5,2485.4,0.80443]
[1751653110655,13.6506,2485.5,2485.4,0.80443]
[1751653111260,77.652,2485.6,2485.5,0.80439]
[1751653111657,40.8,2485.6,2485.5,0.80439]
[1751653112057,0.80435,2485.7,2485.6,0.80436]
[1751653112657,41.60435,2485.7,2485.6,0.80436]
[1751653112862,42.90535,2485.7,2485.6,0.80436]
[1751653113161,0.80439,2485.6,2485.5,0.80437]
[1751653113459,42.90536,2485.7,2485.6,0.80436]
[1751653115461,0.8044,2485.6,2485.5,0.80437]
[1751653115663,2.1242,2485.6,2485.5,0.80437]
[1751653117663,0.80439,2485.5,2485.4,1.46689]
[1751653117857,2.12419,2485.5,2485.4,0.80439]
[1751653118060,0.80449,2485.3,2485.2,0.80446]
[1751653118664,78.42841,2485.5,2485.4,0.80443]
[1751653120665,41.60441,2485.5,2485.4,0.80443]
[1751653120861,77.625,2485.5,2485.4,0.80443]
[1751653121169,0.80446,2485.4,2485.3,0.80443]
[1751653125370,0.80449,2485.2,2485.1,1.48109]
[1751653127473,0.80445,2485.4,2485.3,0.80443]
[1751653127873,0.80449,2485.3,2485.2,0.80447]
[1751653129570,0.80445,2485.4,2485.3,0.80443]
[1751653129771,1.89580015,2485.4,2485.3,0.80443]
[1751653130276,79.48580015,2485.4,2485.3,0.80443]
[1751653131075,42.69580015,2485.4,2485.3,0.80443]
[1751653131275,41.89135015,2485.4,2485.3,0.80443]
[1751653131477,78.67435015,2485.4,2485.3,0.80443]
[1751653131672,38.67878015,2485.4,2485.3,0.80443]
[1751653131874,1.89578015,2485.4,2485.3,0.80443]
[1751653132176,38.67878015,2485.4,2485.3,0.80443]
[1751653132377,1.89578015,2485.4,2485.3,0.80443]
[1751653133679,1.09135015,2485.4,2485.3,0.80443]
[1751653133878,1.89578015,2485.4,2485.3,0.80443]
[1751653134483,1.09135015,2485.4,2485.3,0.80443]
[1751653134781,3.33025,2485.8,2485.5,0.80439]
[1751653134782,41.60436,2485.6,2485.5,0.80439]
[1751653134977,42.69675965,2485.6,2485.5,0.80439]
[1751653135181,37.86139965,2485.6,2485.5,0.80439]
[1751653135883,1.09239965,2485.6,2485.5,0.80439]
[1751653136278,37.85839965,2485.6,2485.5,0.80439]
[1751653136481,1.89675965,2485.6,2485.5,0.80439]
[1751653139086,38.65275965,2485.6,2485.5,0.80439]
[1751653141485,37.56036,2485.6,2485.5,0.80439]
[1751653141686,36.756,2485.6,2485.5,0.80439]
[1751653141886,38.6440807,2485.6,2485.5,0.80439]
[1751653142086,0.80436,2485.6,2485.5,0.80439]
[1751653142289,37.54936,2485.6,2485.5,0.80439]
[1751653145190,37.53436,2485.6,2485.5,0.80439]
[1751653147493,0.80439,2485.5,2485.4,1.46972]
[1751653147693,2.21059,2485.5,2485.4,1.46972]
[1751653149393,0.80439,2485.5,2485.4,1.46972]
[1751653154296,40.8,2485.7,2485.5,0.80436]
[1751653154495,38.58831465,2485.6,2485.5,0.80436]
[1751653154695,0.80439,2485.5,2485.4,0.6653]
[1751653154890,0.80446,2485.4,2485.3,0.80443]
[1751653155490,38.15646,2485.4,2485.3,0.80443]
[1751653155996,0.80446,2485.3,2485.2,1.49468]
[1751653156197,2.20426,2485.3,2485.2,1.49468]
[1751653156398,2.20426,2485.3,2485.2,0.80448]
[1751653156994,0.80445,2485.4,2485.3,0.80446]
[1751653157194,0.80438,2485.6,2485.5,0.80436]
[1751653157488,38.58144197,2485.6,2485.5,0.80436]
[1751653157695,38.58744197,2485.6,2485.5,0.80436]
[1751653159102,0.80439,2485.5,2485.4,1.4946]
[1751653159405,1.89845197,2485.5,2485.4,1.4946]
[1751653159701,1.09406197,2485.5,2485.4,1.4946]
[1751653159896,1.89845197,2485.5,2485.4,1.4946]
[1751653160097,0.80439,2485.5,2485.4,1.4946]
[1751653162201,40.8,2485.7,2485.4,0.6902]
[1751653162402,41.60434,2485.7,2485.6,0.80436]
[1751653162604,79.37046485,2485.7,2485.6,0.80436]
[1751653162799,80.68146485,2485.7,2485.6,0.80436]
[1751653163105,0.80439,2485.6,2485.5,0.80437]
[1751653163297,39.87951485,2485.6,2485.5,0.80437]
[1751653163497,3.20851485,2485.6,2485.5,0.80437]
[1751653163798,0.80439,2485.5,2485.4,1.49459]
[1751653164098,1.89751485,2485.5,2485.4,0.80439]
[1751653164299,39.98491485,2485.5,2485.4,0.80439]
[1751653164497,40.69651485,2485.5,2485.4,0.80439]
[1751653165704,38.56751485,2485.5,2485.4,0.80439]
[1751653167303,38.56751485,2485.5,2485.2,2.01122]
[1751653167304,0.80448,2485.4,2485.3,0.80443]
[1751653167506,0.80449,2485.3,2485.2,0.80447]
[1751653167904,2.21369,2485.3,2485.2,0.80447]
[1751653169107,39.979176,2485.3,2485.2,0.80447]
[1751653173814,1.102486,2485.3,2485.2,0.80447]
[1751653174215,37.45342,2485.5,2485.4,0.80442]
[1751653174417,37.75184227,2485.5,2485.4,0.80442]
[1751653174617,38.55623227,2485.5,2485.4,0.80442]
[1751653176716,37.75184227,2485.5,2485.4,0.80442]
[1751653177017,1.90723227,2485.5,2485.4,0.80442]
[1751653183720,1.10284227,2485.5,2485.4,0.80442]
[1751653184615,41.60434,2485.7,2485.6,0.80436]
[1751653184922,42.70448984,2485.7,2485.6,0.80436]
[1751653185417,1.90448984,2485.7,2485.6,0.80436]
[1751653192631,1.90447984,2485.7,2485.6,0.80436]
[1751653195932,1.10014984,2485.7,2485.6,0.80436]
[1751653196235,1.90447984,2485.7,2485.6,0.80436]
[1751653196433,1.10014984,2485.7,2485.6,0.80436]
[1751653197133,37.42729,2485.9,2485.8,0.80429]
[1751653197434,38.52313288,2485.9,2485.8,0.80429]
[1751653198733,1.09584288,2485.9,2485.8,0.80429]
[1751653199133,0.80424,2486.0,2485.9,0.80426]
[1751653199434,0.80422,2486.1,2486.0,0.8042]
[1751653199733,1.89384709,2486.1,2486.0,0.8042]
[1751653199933,1.08962709,2486.1,2486.0,0.8042]
[1751653200830,0.6859,2486.3,2485.9,3.42222]
[1751653201035,0.80411,2486.4,2486.3,0.80413]
[1751653201233,38.52019096,2486.4,2486.3,0.80413]
[1751653202140,39.90579096,2486.4,2486.3,0.80413]
[1751653204234,38.81071,2486.4,2486.3,0.80413]
[1751653209339,2.1897,2486.4,2486.3,0.80413]
[1751653209535,0.8041,2486.5,2486.4,0.8041]
[1751653209740,38.50909867,2486.5,2486.4,0.8041]
[1751653210234,37.4181,2486.5,2486.4,0.8041]
[1751653210634,0.8041,2486.5,2486.4,0.8041]
[1751653210835,42.31525,2486.6,2486.5,0.80407]
[1751653211030,43.40596023,2486.6,2486.5,0.80407]
[1751653211333,41.5112,2486.6,2486.5,0.80407]
[1751653211841,40.8,2486.6,2486.5,0.80407]
[1751653212542,0.804,2486.8,2486.7,0.80397]
[1751653213641,2.2055,2486.8,2486.7,0.80397]
[1751653215242,0.80404,2486.7,2486.6,0.804]
[1751653216445,0.80396,2486.9,2486.8,0.80394]
[1751653217342,79.51513,2487.0,2486.9,0.80394]
[1751653217740,38.71513,2487.0,2486.9,0.80394]
[1751653218548,2.10613,2487.0,2486.9,0.80394]
[1751653223857,1.3022,2487.0,2486.9,0.80394]
[1751653224152,2.10611,2487.0,2486.9,0.80394]
[1751653224659,0.654,2487.2,2487.1,0.80388]
[1751653224949,2.1252,2487.4,2487.3,0.80381]
[1751653225156,1.08660123,2487.4,2487.3,0.80381]
[1751653225350,0.80376,2487.5,2487.4,0.80378]
[1751653226249,0.80384,2487.3,2487.2,0.80382]
[1751653227554,0.80381,2487.4,2487.3,0.80378]
[1751653229350,0.80378,2487.4,2487.3,0.80378]
[1751653230751,2.22578,2487.5,2487.4,0.80378]
[1751653230945,1.422,2487.5,2487.4,0.80378]
[1751653232157,0.6631,2487.6,2487.5,0.80375]
[1751653232354,62.32216869,2488.2,2487.8,0.80365]
[1751653232355,38.77265,2487.9,2487.8,0.80365]
[1751653232557,2.45547663,2487.9,2487.8,0.80365]
[1751653232857,43.25547663,2487.9,2487.8,0.80365]
[1751653233054,44.05909663,2487.9,2487.8,0.80365]
[1751653233254,2.17562,2487.9,2487.8,0.80365]
[1751653234161,1.372,2487.9,2487.8,0.80365]
[1751653234757,2.17562,2487.9,2487.8,0.80365]
[1751653235861,1.372,2487.9,2487.8,0.80365]
[1751653236257,2.17562,2487.9,2487.8,0.80365]
[1751653236863,78.19761,2488.0,2487.9,0.80362]
[1751653237056,79.27736105,2488.0,2487.9,0.80362]
[1751653237257,80.63416105,2488.0,2487.9,0.80362]
[1751653237458,42.96041,2488.0,2487.9,0.80362]
[1751653237757,79.55141,2488.0,2487.9,0.80362]
[1751653238759,79.55139,2488.0,2487.9,0.80362]
[1751653239560,42.96039,2488.0,2487.9,0.80362]
[1751653239759,0.80359,2488.0,2487.9,0.80362]
[1751653245070,0.80358,2488.1,2488.0,0.80354]
[1751653245256,0.80358,2488.1,2488.0,1.33705385]
[1751653245460,41.60358,2488.1,2488.0,2.05775385]
[1751653245660,0.80358,2488.1,2488.0,2.05775385]
[1751653246763,0.80355,2488.2,2488.1,0.80352]
[1751653246965,0.80355,2488.2,2488.1,1.34000829]
[1751653247768,52.94052,2488.3,2488.2,0.80352]
[1751653247963,89.52352,2488.3,2488.2,1.34000829]
[1751653248268,41.60352,2488.3,2488.2,1.34000829]
[1751653249169,40.8,2488.3,2488.2,1.34000829]
[1751653249570,38.69109,2488.4,2488.3,0.80349]
[1751653249769,38.69109,2488.4,2488.3,1.33997829]
[1751653249970,79.49109,2488.4,2488.3,1.33998149]
[1751653250565,78.18449,2488.4,2488.3,1.33998149]
[1751653252774,40.8,2488.4,2488.3,1.33998149]
[1751653252967,79.56596,2488.4,2488.3,1.33998149]
[1751653253568,79.56596,2488.4,2488.3,0.53649149]
[1751653253763,2.00883,2488.2,2487.6,0.80369]
[1751653254071,2.00907,2487.9,2487.6,0.8037]
[1751653254270,2.00907,2487.9,2487.4,0.80376]
[1751653254271,0.80377,2487.5,2487.4,0.80376]
[1751653254669,0.80374,2487.6,2487.5,0.80373]
[1751653254869,37.38074,2487.6,2487.5,0.80373]
[1751653256363,0.80376,2487.5,2487.4,0.80376]
[1751653256567,2.11486,2487.5,2487.4,0.80376]
[1751653256767,1.3111,2487.5,2487.4,0.80376]
[1751653256968,2.11485,2487.5,2487.4,0.80376]
[1751653257374,1.3111,2487.5,2487.4,0.80376]
[1751653257673,37.2511,2487.6,2487.5,0.80375]
[1751653259472,38.05482,2487.6,2487.5,0.80375]
[1751653261668,38.05484,2487.6,2487.5,0.80375]
[1751653261873,2.0682,2487.8,2487.7,0.80368]
[1751653262075,39.85385408,2487.8,2487.7,0.80368]
[1751653262376,1.3974,2487.8,2487.7,0.80368]
[1751653262572,2.4713308,2487.8,2487.7,0.80368]
[1751653263474,2.4713308,2487.8,2487.3,0.7089]
[1751653263475,0.80371,2487.7,2487.6,0.80369]
[1751653263675,2.21431,2487.7,2487.6,0.80369]
[1751653266772,0.80374,2487.6,2487.5,0.80372]
[1751653267675,1.4106,2487.7,2487.6,0.80372]
[1751653268076,2.21428,2487.7,2487.6,0.80372]
[1751653269282,1.4106,2487.7,2487.6,0.80372]
[1751653269681,0.80368,2487.7,2487.6,0.80372]
[1751653273287,2.80368,2487.7,2487.6,0.80372]
[1751653274184,0.80375,2487.6,2487.5,0.80372]
[1751653275385,0.80378,2487.5,2487.4,0.80377]
[1751653275586,0.80378,2487.4,2487.3,1.51269]
[1751653275789,1.3486,2487.6,2487.3,1.51269]
[1751653275790,0.80377,2487.5,2487.4,0.80376]
[1751653276590,2.15234,2487.6,2487.5,0.80375]
[1751653278786,2.15234,2487.6,2487.3,0.7089]
[1751653278787,0.80378,2487.5,2487.4,0.80376]
[1751653280888,0.80378,2487.4,2487.3,1.51269]
[1751653282390,0.80378,2487.5,2487.4,0.80375]
[1751653282586,1.90201124,2487.5,2487.4,0.80375]
[1751653284187,1.09823124,2487.5,2487.4,0.80375]
[1751653284383,11.335,2488.0,2487.7,2.00921]
[1751653284586,1.09955028,2487.9,2487.8,1.52135]
[1751653287193,0.80361,2488.0,2487.9,0.80362]
[1751653287697,0.80358,2488.1,2488.0,0.80354]
[1751653290895,0.80355,2488.2,2488.1,0.80353]
[1751653293300,0.80355,2488.2,2487.8,3.39394]
[1751653293301,0.80357,2488.1,2488.0,0.80357]
[1751653293498,0.80362,2488.0,2487.9,0.80359]
[1751653294100,0.80362,2488.0,2487.7,2.00921]
[1751653294101,0.80358,2488.1,2488.0,0.80355]
[1751653299103,0.80363,2488.0,2487.9,0.8036]
[1751653299695,0.80358,2488.1,2488.0,0.80356]
[1751653303303,0.80354,2488.3,2488.2,0.80349]
[1751653303502,1.89844558,2488.3,2488.2,0.80352]
[1751653303903,0.8035,2488.3,2488.2,0.80352]
[1751653305005,40.8,2488.4,2488.3,0.80349]
[1751653305204,78.45800372,2488.4,2488.3,0.80349]
[1751653305398,37.65800372,2488.4,2488.3,0.80349]
[1751653305605,37.6579726,2488.4,2488.3,0.80349]
[1751653305805,38.4614326,2488.4,2488.3,0.80349]
[1751653306007,1.0949726,2488.4,2488.3,0.80349]
[1751653306206,0.80332,2488.9,2488.8,0.8033]
[1751653306413,0.80332,2488.9,2488.2,2.00882]
[1751653306414,0.80329,2489.0,2488.9,0.80327]
[1751653307309,0.80326,2489.1,2489.0,0.80323]
[1751653307507,1.09422222,2489.1,2489.0,0.80323]
[1751653308007,12.7081,2489.5,2489.0,0.80323]
[1751653308008,0.80316,2489.4,2489.3,0.80317]
[1751653308305,38.45243178,2489.4,2489.3,0.80317]
[1751653308504,79.25243178,2489.4,2489.3,0.80317]
[1751653309099,42.69543178,2489.4,2489.3,0.80317]
[1751653309310,41.60316,2489.4,2489.3,0.80317]
[1751653309810,41.60316,2489.4,2489.2,0.676]
[1751653310008,41.60316,2489.4,2489.3,0.80317]
[1751653310604,0.80317,2489.3,2489.2,1.47918]
[1751653310810,0.80309,2489.6,2489.5,0.8031]
[1751653311111,0.80315,2489.4,2489.3,0.80316]
[1751653311503,0.80317,2489.3,2489.2,1.47919]
[1751653312409,0.80349,2488.3,2488.2,3.20229889]